[Event "*** Titled Tuesday Blitz"]
[Site "Chess.com"]
[Date "2019.06.04"]
[Round "2"]
[White "lexiel"]
[Black "fidezivkovic"]
[Result "1-0"]
[WhiteElo "2265"]
[BlackElo "2222"]
[TimeControl "180+2"]
[EndTime "13:21:52 PDT"]
[Termination "lexiel won on time"]

1. d4 {[%clk 0:03:01.9]} 1... Nf6 {[%clk 0:02:59.6]} 2. Nf3 {[%clk 0:03:02.4]}
2... e6 {[%clk 0:02:59.1]} 3. g3 {[%clk 0:03:00.8]} 3... c5 {[%clk 0:02:58.3]}
4. c3 {[%clk 0:03:00.6]} 4... b6 {[%clk 0:02:56.3]} 5. Bg2 {[%clk 0:03:01.7]}
5... Bb7 {[%clk 0:02:56.2]} 6. O-O {[%clk 0:03:02.4]} 6... Be7 {[%clk
0:02:55.7]} 7. Nbd2 {[%clk 0:03:02.1]} 7... O-O {[%clk 0:02:49.6]} 8. Re1 {[%clk
0:03:01.1]} 8... d5 {[%clk 0:02:49.5]} 9. b3 {[%clk 0:03:00.9]} 9... Nc6 {[%clk
0:02:39.1]} 10. Bb2 {[%clk 0:03:02]} 10... Rc8 {[%clk 0:02:38.8]} 11. e3 {[%clk
0:03:02.3]} 11... Re8 {[%clk 0:02:22.3]} 12. Rc1 {[%clk 0:03:02.9]} 12... Bd6
{[%clk 0:02:08.7]} 13. c4 {[%clk 0:02:48.4]} 13... Nb4 {[%clk 0:02:08.1]} 14.
Qe2 {[%clk 0:02:45.3]} 14... cxd4 {[%clk 0:01:48.6]} 15. exd4 {[%clk 0:02:42.1]}
15... Ne4 {[%clk 0:01:34.1]} 16. a3 {[%clk 0:02:40.7]} 16... Na6 {[%clk
0:01:01.1]} 17. Nxe4 {[%clk 0:01:55]} 17... dxe4 {[%clk 0:01:00.9]} 18. Nd2
{[%clk 0:01:56.5]} 18... f5 {[%clk 0:00:59.1]} 19. f3 {[%clk 0:01:56.6]} 19...
exf3 {[%clk 0:00:56.3]} 20. Nxf3 {[%clk 0:01:58.5]} 20... Nc7 {[%clk 0:00:50.6]}
21. c5 {[%clk 0:01:51.7]} 21... Bf8 {[%clk 0:00:31]} 22. c6 {[%clk 0:01:43.2]}
22... Ba8 {[%clk 0:00:31]} 23. Ne5 {[%clk 0:01:42.6]} 23... Nd5 {[%clk
0:00:21.6]} 24. b4 {[%clk 0:01:43.5]} 24... Bd6 {[%clk 0:00:15.6]} 25. b5 {[%clk
0:01:40.8]} 25... Qe7 {[%clk 0:00:14.2]} 26. Nc4 {[%clk 0:01:39.1]} 26... Qf7
{[%clk 0:00:07.2]} 27. Nxd6 {[%clk 0:01:39.2]} 1-0

[Event "*** Titled Tuesday Blitz"]
[Site "Chess.com"]
[Date "2019.06.04"]
[Round "2"]
[White "chessking2151"]
[Black "Durarbayli"]
[Result "0-1"]
[WhiteElo "2573"]
[BlackElo "2747"]
[TimeControl "180+2"]
[EndTime "13:21:58 PDT"]
[Termination "Durarbayli won by resignation"]

1. e4 {[%clk 0:03:01.9]} 1... e6 {[%clk 0:03:00.8]} 2. d4 {[%clk 0:03:01.2]}
2... d5 {[%clk 0:03:01.4]} 3. Nc3 {[%clk 0:03:01.7]} 3... Nf6 {[%clk 0:03:00.8]}
4. e5 {[%clk 0:03:02.8]} 4... Nfd7 {[%clk 0:03:01.8]} 5. f4 {[%clk 0:03:04.3]}
5... c5 {[%clk 0:03:02.9]} 6. Nce2 {[%clk 0:03:05.8]} 6... Nc6 {[%clk
0:03:03.1]} 7. Nf3 {[%clk 0:03:06.9]} 7... Qb6 {[%clk 0:02:55.3]} 8. c3 {[%clk
0:03:00.5]} 8... f6 {[%clk 0:02:48.2]} 9. g3 {[%clk 0:02:47.9]} 9... cxd4 {[%clk
0:02:47.6]} 10. cxd4 {[%clk 0:02:47.4]} 10... fxe5 {[%clk 0:02:48.3]} 11. fxe5
{[%clk 0:02:46.1]} 11... Bb4+ {[%clk 0:02:48.7]} 12. Bd2 {[%clk 0:02:08.5]}
12... O-O {[%clk 0:02:47.6]} 13. Bg2 {[%clk 0:02:00.5]} 13... Rxf3 {[%clk
0:02:41.1]} 14. Bxf3 {[%clk 0:01:55.5]} 14... Nxd4 {[%clk 0:02:41.9]} 15. Nxd4
{[%clk 0:01:50.9]} 15... Qxd4 {[%clk 0:02:43.8]} 16. Bxb4 {[%clk 0:01:50.4]}
16... Qxb4+ {[%clk 0:02:45.7]} 17. Qd2 {[%clk 0:01:49.6]} 17... Qxd2+ {[%clk
0:02:46.5]} 18. Kxd2 {[%clk 0:01:50.6]} 18... Nxe5 {[%clk 0:02:48.4]} 19. Bg2
{[%clk 0:01:15.2]} 19... Bd7 {[%clk 0:02:44.2]} 20. b3 {[%clk 0:01:14.4]} 20...
Kf7 {[%clk 0:02:40.7]} 21. Rae1 {[%clk 0:00:51.2]} 21... Ng4 {[%clk 0:02:41.1]}
22. Rhf1+ {[%clk 0:00:50.1]} 22... Nf6 {[%clk 0:02:39]} 23. g4 {[%clk
0:00:45.5]} 23... h6 {[%clk 0:02:37.3]} 24. h4 {[%clk 0:00:17.6]} 24... g5
{[%clk 0:02:36.1]} 25. Rf2 {[%clk 0:00:16.7]} 25... Ke7 {[%clk 0:02:34.4]} 26.
Bf3 {[%clk 0:00:14.8]} 26... Rf8 {[%clk 0:02:14.9]} 27. Ref1 {[%clk 0:00:06.9]}
27... Bb5 {[%clk 0:02:13.4]} 28. Re1 {[%clk 0:00:04.1]} 28... Ne4+ {[%clk
0:02:03.1]} 29. Ke3 {[%clk 0:00:04.9]} 29... Nxf2 {[%clk 0:02:02.2]} 30. Kxf2
{[%clk 0:00:05.2]} 30... Kd6 {[%clk 0:01:56.7]} 31. Kg3 {[%clk 0:00:06.1]} 31...
gxh4+ {[%clk 0:01:56.2]} 32. Kf2 {[%clk 0:00:07.1]} 32... e5 {[%clk 0:01:56.7]}
33. Ke3 {[%clk 0:00:05.4]} 33... Bc6 {[%clk 0:01:57]} 34. Be2 {[%clk 0:00:06.3]}
34... d4+ {[%clk 0:01:57.7]} 35. Kd2 {[%clk 0:00:07.6]} 35... h3 {[%clk
0:01:58.6]} 0-1

[Event "*** Titled Tuesday Blitz"]
[Site "Chess.com"]
[Date "2019.06.04"]
[Round "2"]
[White "CzechmVIII"]
[Black "Jabberwockiez"]
[Result "0-1"]
[WhiteElo "2095"]
[BlackElo "2224"]
[TimeControl "180+2"]
[EndTime "13:21:58 PDT"]
[Termination "Jabberwockiez won by resignation"]

1. e4 {[%clk 0:03:01.9]} 1... c5 {[%clk 0:02:58.8]} 2. Nf3 {[%clk 0:03:01.9]}
2... d6 {[%clk 0:03:00.2]} 3. d4 {[%clk 0:03:02.9]} 3... cxd4 {[%clk 0:03:02.1]}
4. Nxd4 {[%clk 0:03:04.2]} 4... Nf6 {[%clk 0:03:03.4]} 5. Nc3 {[%clk 0:03:05.9]}
5... Nc6 {[%clk 0:03:03.4]} 6. Bc4 {[%clk 0:03:05.9]} 6... e6 {[%clk 0:03:04.1]}
7. Be3 {[%clk 0:03:06.5]} 7... Be7 {[%clk 0:03:05.5]} 8. Qe2 {[%clk 0:03:07.7]}
8... O-O {[%clk 0:03:05.2]} 9. O-O-O {[%clk 0:03:08.5]} 9... Bd7 {[%clk
0:03:06.6]} 10. Bb3 {[%clk 0:03:03.3]} 10... Nxd4 {[%clk 0:03:00.9]} 11. Bxd4
{[%clk 0:03:00.7]} 11... b5 {[%clk 0:02:58.3]} 12. f3 {[%clk 0:02:55.1]} 12...
b4 {[%clk 0:02:56.5]} 13. Nb1 {[%clk 0:02:20.8]} 13... a5 {[%clk 0:02:56.8]} 14.
e5 {[%clk 0:02:18.5]} 14... dxe5 {[%clk 0:02:46]} 15. Bxe5 {[%clk 0:02:19.7]}
15... a4 {[%clk 0:02:47.1]} 16. Bc4 {[%clk 0:02:21]} 16... b3 {[%clk 0:02:39.2]}
17. cxb3 {[%clk 0:02:08.4]} 17... axb3 {[%clk 0:02:40]} 18. a3 {[%clk
0:02:09.5]} 18... Rc8 {[%clk 0:02:37.8]} 19. Nc3 {[%clk 0:02:03.6]} 19... Qe8
{[%clk 0:02:29.2]} 20. Bxb3 {[%clk 0:02:00.1]} 20... Nd5 {[%clk 0:02:25.8]} 21.
Bxd5 {[%clk 0:01:30.3]} 21... exd5 {[%clk 0:02:25.9]} 22. Kb1 {[%clk 0:01:31.7]}
22... Bxa3 {[%clk 0:02:17.9]} 23. bxa3 {[%clk 0:01:28.8]} 23... Rxc3 {[%clk
0:02:18.1]} 24. Rhe1 {[%clk 0:00:45.2]} 24... Bf5+ {[%clk 0:02:10.8]} 25. Ka2
{[%clk 0:00:37.2]} 25... Rc2+ {[%clk 0:01:57.4]} 26. Qxc2 {[%clk 0:00:35.3]}
26... Bxc2 {[%clk 0:01:59.3]} 27. Rc1 {[%clk 0:00:33.4]} 27... Qa4 {[%clk
0:01:54.3]} 28. Bd6 {[%clk 0:00:26.4]} 28... Qb3+ {[%clk 0:01:52.6]} 29. Ka1
{[%clk 0:00:27.1]} 29... Qc3+ {[%clk 0:01:32.6]} 30. Ka2 {[%clk 0:00:28.2]}
30... Bb3+ {[%clk 0:01:33.5]} 31. Kb1 {[%clk 0:00:29]} 31... Qd2 {[%clk
0:01:32.5]} 0-1

[Event "*** Titled Tuesday Blitz"]
[Site "Chess.com"]
[Date "2019.06.04"]
[Round "2"]
[White "Bigfish1995"]
[Black "TonRicher"]
[Result "1-0"]
[WhiteElo "2962"]
[BlackElo "2361"]
[TimeControl "180+2"]
[EndTime "13:21:59 PDT"]
[Termination "Bigfish1995 won by resignation"]

1. d4 {[%clk 0:03:01.9]} 1... Nf6 {[%clk 0:03:00.6]} 2. Nf3 {[%clk 0:03:02.9]}
2... e6 {[%clk 0:03:01.3]} 3. c4 {[%clk 0:03:03.3]} 3... d5 {[%clk 0:03:02.3]}
4. g3 {[%clk 0:03:04.1]} 4... Be7 {[%clk 0:03:03]} 5. Bg2 {[%clk 0:03:02.1]}
5... O-O {[%clk 0:03:01]} 6. O-O {[%clk 0:03:03.1]} 6... dxc4 {[%clk 0:03:01.8]}
7. Qc2 {[%clk 0:03:04.3]} 7... a6 {[%clk 0:03:02.7]} 8. a4 {[%clk 0:03:03.5]}
8... Bd7 {[%clk 0:03:03.2]} 9. Qxc4 {[%clk 0:03:04.4]} 9... Bc6 {[%clk 0:03:04]}
10. Bf4 {[%clk 0:03:05]} 10... Bd6 {[%clk 0:02:59.8]} 11. Qc1 {[%clk 0:03:06]}
11... a5 {[%clk 0:02:48.3]} 12. Nc3 {[%clk 0:03:01.1]} 12... Na6 {[%clk
0:02:39.7]} 13. Bg5 {[%clk 0:02:59.5]} 13... Bxf3 {[%clk 0:02:32.4]} 14. Bxf3
{[%clk 0:02:59.3]} 14... c6 {[%clk 0:02:34]} 15. Rd1 {[%clk 0:02:57.3]} 15... h6
{[%clk 0:02:29.2]} 16. Bd2 {[%clk 0:02:46.4]} 16... Qe7 {[%clk 0:02:24.5]} 17.
Bg2 {[%clk 0:02:35.9]} 17... Rfd8 {[%clk 0:02:16.2]} 18. Be1 {[%clk 0:02:26.5]}
18... e5 {[%clk 0:02:01.7]} 19. d5 {[%clk 0:02:19.3]} 19... cxd5 {[%clk
0:01:55.3]} 20. Nxd5 {[%clk 0:02:17.2]} 20... Nxd5 {[%clk 0:01:55.8]} 21. Rxd5
{[%clk 0:02:17.6]} 21... Nb4 {[%clk 0:01:51.6]} 22. Rb5 {[%clk 0:02:15.3]} 22...
Rac8 {[%clk 0:01:33.4]} 23. Bc3 {[%clk 0:02:15.5]} 23... Rc7 {[%clk 0:01:16.4]}
24. Rxa5 {[%clk 0:02:01.5]} 24... Nc6 {[%clk 0:01:08.4]} 25. Rd5 {[%clk
0:01:55.4]} 25... Nd4 {[%clk 0:01:06.1]} 26. Qd1 {[%clk 0:01:54.1]} 26... Rcd7
{[%clk 0:00:18.2]} 27. e3 {[%clk 0:01:52.2]} 27... Nc6 {[%clk 0:00:19.5]} 28.
Qg4 {[%clk 0:01:41.6]} 28... Bb4 {[%clk 0:00:17.1]} 29. Rxd7 {[%clk 0:01:41.5]}
29... Rxd7 {[%clk 0:00:19]} 30. Bxc6 {[%clk 0:01:40.3]} 30... bxc6 {[%clk
0:00:15.2]} 31. Qxb4 {[%clk 0:01:40]} 1-0

[Event "*** Titled Tuesday Blitz"]
[Site "Chess.com"]
[Date "2019.06.04"]
[Round "2"]
[White "NicoChasin"]
[Black "Misha_Bilous"]
[Result "1-0"]
[WhiteElo "2475"]
[BlackElo "2419"]
[TimeControl "180+2"]
[EndTime "13:22:00 PDT"]
[Termination "NicoChasin won by resignation"]

1. e4 {[%clk 0:03:01.9]} 1... c5 {[%clk 0:03:00.5]} 2. Nf3 {[%clk 0:03:02.3]}
2... d6 {[%clk 0:03:01.9]} 3. d4 {[%clk 0:03:03.3]} 3... cxd4 {[%clk 0:03:03.8]}
4. Nxd4 {[%clk 0:03:04.5]} 4... Nf6 {[%clk 0:03:05.1]} 5. Nc3 {[%clk 0:03:05.9]}
5... a6 {[%clk 0:03:06.3]} 6. Be2 {[%clk 0:03:05.4]} 6... e5 {[%clk 0:03:06.8]}
7. Nb3 {[%clk 0:03:07]} 7... Be7 {[%clk 0:03:07.9]} 8. g4 {[%clk 0:03:07]} 8...
h6 {[%clk 0:02:59]} 9. Be3 {[%clk 0:02:59.6]} 9... Be6 {[%clk 0:02:49.7]} 10.
Bf3 {[%clk 0:02:57.6]} 10... Nbd7 {[%clk 0:02:47.7]} 11. h4 {[%clk 0:02:58.5]}
11... Rc8 {[%clk 0:02:39.3]} 12. Qe2 {[%clk 0:02:53.2]} 12... b5 {[%clk
0:02:33.4]} 13. O-O-O {[%clk 0:02:50.6]} 13... Nb6 {[%clk 0:02:11]} 14. g5
{[%clk 0:02:48.4]} 14... hxg5 {[%clk 0:02:10.5]} 15. hxg5 {[%clk 0:02:47.8]}
15... Rxh1 {[%clk 0:02:11.4]} 16. Rxh1 {[%clk 0:02:47.6]} 16... Nfd7 {[%clk
0:02:12.3]} 17. Rh8+ {[%clk 0:02:40.4]} 17... Nf8 {[%clk 0:02:12.6]} 18. g6
{[%clk 0:02:32.3]} 18... fxg6 {[%clk 0:02:08.4]} 19. Bg4 {[%clk 0:02:32.1]}
19... Bxg4 {[%clk 0:01:08.3]} 20. Qxg4 {[%clk 0:02:32]} 20... Nc4 {[%clk
0:01:09.6]} 21. Qxg6+ {[%clk 0:02:27.2]} 21... Kd7 {[%clk 0:01:10.9]} 22. Qf5+
{[%clk 0:02:27.8]} 22... Kc6 {[%clk 0:01:04.5]} 23. Nd5 {[%clk 0:02:27.7]} 23...
Kb7 {[%clk 0:00:58.4]} 24. Qf7 {[%clk 0:02:25.2]} 24... Rc7 {[%clk 0:00:41.3]}
25. Nxc7 {[%clk 0:02:20.8]} 25... Qxc7 {[%clk 0:00:42.6]} 26. Rxf8 {[%clk
0:02:20]} 26... Bxf8 {[%clk 0:00:42.7]} 27. Qxf8 {[%clk 0:02:20.4]} 27... Nxe3
{[%clk 0:00:43.1]} 28. fxe3 {[%clk 0:02:20.2]} 28... g5 {[%clk 0:00:44.2]} 29.
Qf5 {[%clk 0:02:18]} 29... Qg7 {[%clk 0:00:43.5]} 30. Qg4 {[%clk 0:02:17.1]}
30... Kc7 {[%clk 0:00:37.7]} 31. Nd2 {[%clk 0:02:15.6]} 31... Qh6 {[%clk
0:00:33.8]} 32. c3 {[%clk 0:02:14.7]} 32... Qh4 {[%clk 0:00:26.6]} 33. Qxh4
{[%clk 0:02:14.2]} 33... gxh4 {[%clk 0:00:28.5]} 34. Nf3 {[%clk 0:02:14.3]}
34... h3 {[%clk 0:00:29.5]} 35. Kd2 {[%clk 0:02:15.4]} 35... Kc6 {[%clk
0:00:28.6]} 36. Ke2 {[%clk 0:02:16.4]} 36... d5 {[%clk 0:00:24.3]} 37. Nxe5+
{[%clk 0:02:16.3]} 37... Kd6 {[%clk 0:00:25]} 38. Ng4 {[%clk 0:02:17.3]} 38...
dxe4 {[%clk 0:00:24]} 39. Kf2 {[%clk 0:02:17.3]} 39... Kd5 {[%clk 0:00:24.4]}
40. b3 {[%clk 0:02:17.1]} 40... h2 {[%clk 0:00:11.6]} 41. Nxh2 {[%clk
0:02:16.9]} 1-0

[Event "*** Titled Tuesday Blitz"]
[Site "Chess.com"]
[Date "2019.06.04"]
[Round "2"]
[White "jacky72"]
[Black "VFernandezB"]
[Result "1-0"]
[WhiteElo "2708"]
[BlackElo "2353"]
[TimeControl "180+2"]
[EndTime "13:22:09 PDT"]
[Termination "jacky72 won by checkmate"]

1. c4 {[%clk 0:03:01.9]} 1... Nf6 {[%clk 0:02:59.8]} 2. d4 {[%clk 0:03:02.8]}
2... e6 {[%clk 0:03:00.8]} 3. Nf3 {[%clk 0:03:04.3]} 3... d5 {[%clk 0:03:02.4]}
4. Nc3 {[%clk 0:03:04.7]} 4... dxc4 {[%clk 0:03:03.5]} 5. e3 {[%clk 0:03:04.9]}
5... a6 {[%clk 0:03:04.7]} 6. Bxc4 {[%clk 0:03:06.1]} 6... b5 {[%clk 0:03:06.2]}
7. Bb3 {[%clk 0:03:07.6]} 7... Bb7 {[%clk 0:03:07.8]} 8. O-O {[%clk 0:03:09.1]}
8... Nbd7 {[%clk 0:03:09.4]} 9. e4 {[%clk 0:03:10.7]} 9... b4 {[%clk 0:02:23]}
10. e5 {[%clk 0:03:11]} 10... bxc3 {[%clk 0:02:22.5]} 11. exf6 {[%clk 0:03:12]}
11... cxb2 {[%clk 0:02:20.7]} 12. fxg7 {[%clk 0:03:12.7]} 12... Bxg7 {[%clk
0:02:15.8]} 13. Bxb2 {[%clk 0:03:13.4]} 13... O-O {[%clk 0:02:16.8]} 14. Re1
{[%clk 0:02:58.9]} 14... c5 {[%clk 0:02:08]} 15. Rc1 {[%clk 0:02:58]} 15... Rc8
{[%clk 0:02:04.6]} 16. Rc2 {[%clk 0:02:50.4]} 16... Bxf3 {[%clk 0:02:02.2]} 17.
Qxf3 {[%clk 0:02:51]} 17... cxd4 {[%clk 0:02:04.1]} 18. Rxc8 {[%clk 0:02:42.7]}
18... Qxc8 {[%clk 0:02:06]} 19. Qg4 {[%clk 0:02:43.2]} 19... e5 {[%clk
0:01:56.8]} 20. f4 {[%clk 0:02:41.2]} 20... Kh8 {[%clk 0:01:42.2]} 21. fxe5
{[%clk 0:02:35.7]} 21... Nxe5 {[%clk 0:01:42.2]} 22. Qe4 {[%clk 0:02:32.1]}
22... Qd7 {[%clk 0:01:29]} 23. Kh1 {[%clk 0:02:29.1]} 23... Ng6 {[%clk
0:01:17.3]} 24. Rd1 {[%clk 0:02:25.9]} 24... f5 {[%clk 0:01:12.4]} 25. Qd3
{[%clk 0:02:23.6]} 25... Rd8 {[%clk 0:01:09.7]} 26. Qxa6 {[%clk 0:02:24.3]}
26... Nf4 {[%clk 0:00:58.1]} 27. Qf1 {[%clk 0:02:20.8]} 27... Ng6 {[%clk
0:00:39.6]} 28. h3 {[%clk 0:02:20.5]} 28... f4 {[%clk 0:00:35.7]} 29. Qf3 {[%clk
0:02:11.3]} 29... Qd6 {[%clk 0:00:36.2]} 30. Bc2 {[%clk 0:02:10.2]} 30... Nh4
{[%clk 0:00:35.7]} 31. Qg4 {[%clk 0:02:09]} 31... Bf6 {[%clk 0:00:37]} 32. Bxd4
{[%clk 0:02:02.4]} 32... Bxd4 {[%clk 0:00:30.3]} 33. Qxh4 {[%clk 0:02:03.3]}
33... Qc7 {[%clk 0:00:24.4]} 34. Be4 {[%clk 0:01:53.9]} 34... Rd6 {[%clk
0:00:17.9]} 35. a4 {[%clk 0:01:49.5]} 35... Bg7 {[%clk 0:00:10.8]} 36. Qxh7#
{[%clk 0:01:48.5]} 1-0

[Event "*** Titled Tuesday Blitz"]
[Site "Chess.com"]
[Date "2019.06.04"]
[Round "2"]
[White "Jadeit90"]
[Black "Pechen_Yeltsina"]
[Result "0-1"]
[WhiteElo "2380"]
[BlackElo "2693"]
[TimeControl "180+2"]
[EndTime "13:22:09 PDT"]
[Termination "Pechen_Yeltsina won by resignation"]

1. e4 {[%clk 0:03:01.9]} 1... g6 {[%clk 0:03:00.4]} 2. d4 {[%clk 0:03:01.7]}
2... Bg7 {[%clk 0:03:01.8]} 3. Nc3 {[%clk 0:03:00]} 3... d6 {[%clk 0:03:03.2]}
4. Be3 {[%clk 0:03:00.2]} 4... a6 {[%clk 0:03:04.7]} 5. Qd2 {[%clk 0:03:00.9]}
5... Nd7 {[%clk 0:03:06.2]} 6. O-O-O {[%clk 0:03:02]} 6... b5 {[%clk 0:03:07.7]}
7. f3 {[%clk 0:03:02.8]} 7... Bb7 {[%clk 0:03:09]} 8. g4 {[%clk 0:03:03.6]} 8...
Nb6 {[%clk 0:03:09.2]} 9. h4 {[%clk 0:03:04.6]} 9... h6 {[%clk 0:03:10]} 10.
Nge2 {[%clk 0:03:03.6]} 10... Nc4 {[%clk 0:03:10]} 11. Qd3 {[%clk 0:03:04.5]}
11... Nxe3 {[%clk 0:03:10.9]} 12. Qxe3 {[%clk 0:03:05.7]} 12... Nf6 {[%clk
0:03:12.4]} 13. Kb1 {[%clk 0:03:06.4]} 13... Nd7 {[%clk 0:03:13.5]} 14. Bg2
{[%clk 0:03:06.3]} 14... c5 {[%clk 0:03:14]} 15. f4 {[%clk 0:03:03.9]} 15...
cxd4 {[%clk 0:03:13.9]} 16. Nxd4 {[%clk 0:03:04.6]} 16... Qb6 {[%clk 0:03:14.6]}
17. Rhe1 {[%clk 0:03:04.5]} 17... e5 {[%clk 0:02:54.6]} 18. fxe5 {[%clk
0:02:52.5]} 18... dxe5 {[%clk 0:02:56.5]} 19. Nb3 {[%clk 0:02:48.2]} 19... Qxe3
{[%clk 0:02:56.3]} 20. Rxe3 {[%clk 0:02:48.7]} 20... O-O-O {[%clk 0:02:48.8]}
21. Red3 {[%clk 0:02:44]} 21... Nf6 {[%clk 0:02:46.7]} 22. g5 {[%clk 0:02:43.1]}
22... Rxd3 {[%clk 0:02:44.4]} 23. Rxd3 {[%clk 0:02:39.3]} 23... hxg5 {[%clk
0:02:45.9]} 24. hxg5 {[%clk 0:02:40.6]} 24... Nh5 {[%clk 0:02:42.6]} 25. Rd1
{[%clk 0:02:27.2]} 25... Nf4 {[%clk 0:02:42.8]} 26. Bh1 {[%clk 0:02:20.6]} 26...
Rd8 {[%clk 0:02:34.6]} 27. Rxd8+ {[%clk 0:02:20.7]} 27... Kxd8 {[%clk
0:02:36.5]} 28. Nc5 {[%clk 0:02:21.1]} 28... Bc8 {[%clk 0:02:37.9]} 29. Nd5
{[%clk 0:02:20.5]} 29... Bf8 {[%clk 0:02:38.3]} 30. Nd3 {[%clk 0:02:19.6]} 30...
Nxd3 {[%clk 0:02:19.4]} 31. cxd3 {[%clk 0:02:20.1]} 31... Bc5 {[%clk 0:02:20.9]}
32. Bf3 {[%clk 0:02:08.4]} 32... Bf2 {[%clk 0:02:20.2]} 33. Nf6 {[%clk
0:02:00.8]} 33... Be3 {[%clk 0:02:17]} 34. Ng4 {[%clk 0:01:58.8]} 34... Bf4
{[%clk 0:02:14.9]} 35. Kc2 {[%clk 0:01:56.3]} 35... Ke7 {[%clk 0:02:16.1]} 36.
Kc3 {[%clk 0:01:54.5]} 36... Be6 {[%clk 0:02:15.2]} 37. a3 {[%clk 0:01:50.9]}
37... Kd6 {[%clk 0:02:11.4]} 38. d4 {[%clk 0:01:49.7]} 38... exd4+ {[%clk
0:02:11.7]} 39. Kxd4 {[%clk 0:01:51.1]} 39... Bxg5 {[%clk 0:02:10.3]} 40. e5+
{[%clk 0:01:52.5]} 40... Kc7 {[%clk 0:02:11.7]} 41. Nf2 {[%clk 0:01:51.9]} 41...
Bc1 {[%clk 0:02:02.5]} 42. Kc3 {[%clk 0:01:51.6]} 42... g5 {[%clk 0:01:59]} 43.
Ne4 {[%clk 0:01:47.1]} 43... g4 {[%clk 0:01:56.7]} 44. Bg2 {[%clk 0:01:48]}
44... Bd5 {[%clk 0:01:50.5]} 45. Kd4 {[%clk 0:01:47.5]} 45... Bc6 {[%clk
0:01:50.5]} 46. Kc3 {[%clk 0:01:47.5]} 46... Kd8 {[%clk 0:01:47.5]} 47. a4
{[%clk 0:01:21]} 47... bxa4 {[%clk 0:01:46.6]} 48. Kc2 {[%clk 0:01:22.4]} 48...
Bf4 {[%clk 0:01:46.5]} 0-1

[Event "*** Titled Tuesday Blitz"]
[Site "Chess.com"]
[Date "2019.06.04"]
[Round "2"]
[White "gemarin"]
[Black "Chempiblinka"]
[Result "0-1"]
[WhiteElo "2044"]
[BlackElo "2154"]
[TimeControl "180+2"]
[EndTime "13:22:21 PDT"]
[Termination "Chempiblinka won by resignation"]

1. d4 {[%clk 0:03:01.9]} 1... Nf6 {[%clk 0:03:01.3]} 2. c4 {[%clk 0:03:02.3]}
2... c5 {[%clk 0:03:02.5]} 3. Nf3 {[%clk 0:03:01]} 3... cxd4 {[%clk 0:03:02.7]}
4. Nxd4 {[%clk 0:03:02]} 4... Nc6 {[%clk 0:03:04.3]} 5. Nc2 {[%clk 0:03:01.3]}
5... d5 {[%clk 0:03:03.4]} 6. cxd5 {[%clk 0:03:00]} 6... Qxd5 {[%clk 0:03:04]}
7. Bd2 {[%clk 0:02:59.3]} 7... Bf5 {[%clk 0:02:58.7]} 8. Nc3 {[%clk 0:02:58.3]}
8... Qd7 {[%clk 0:02:59.3]} 9. Ne3 {[%clk 0:02:52.4]} 9... Bg6 {[%clk
0:02:59.5]} 10. g3 {[%clk 0:02:50.9]} 10... Rd8 {[%clk 0:02:51.9]} 11. Bg2
{[%clk 0:02:49.8]} 11... e6 {[%clk 0:02:52.8]} 12. a3 {[%clk 0:02:35.2]} 12...
Be7 {[%clk 0:02:40.5]} 13. Nc4 {[%clk 0:02:28.5]} 13... O-O {[%clk 0:02:26.6]}
14. Be3 {[%clk 0:02:21.1]} 14... Qc8 {[%clk 0:02:26.9]} 15. Qb3 {[%clk
0:02:18.8]} 15... Nd5 {[%clk 0:02:22.1]} 16. Nxd5 {[%clk 0:02:17.4]} 16... exd5
{[%clk 0:02:23.2]} 17. Nd2 {[%clk 0:02:11.1]} 17... d4 {[%clk 0:02:24.1]} 18.
Bf4 {[%clk 0:02:09.2]} 18... d3 {[%clk 0:02:24.1]} 19. e4 {[%clk 0:02:05]} 19...
Nd4 {[%clk 0:02:22.1]} 20. Qd1 {[%clk 0:00:16.3]} 20... Nc2+ {[%clk 0:02:17.6]}
21. Kf1 {[%clk 0:00:17.4]} 21... Nxa1 {[%clk 0:02:16.3]} 22. Qxa1 {[%clk
0:00:18.4]} 22... Qc2 {[%clk 0:02:15.7]} 23. Bf3 {[%clk 0:00:12.4]} 23... Bf6
{[%clk 0:02:11.9]} 24. e5 {[%clk 0:00:11.4]} 24... Bxe5 {[%clk 0:02:12.9]} 25.
Bxe5 {[%clk 0:00:11.9]} 25... Qxd2 {[%clk 0:02:14.1]} 26. Kg2 {[%clk 0:00:13.4]}
26... Rfe8 {[%clk 0:02:11.9]} 27. Bc3 {[%clk 0:00:13.8]} 27... Qg5 {[%clk
0:02:04.2]} 28. h4 {[%clk 0:00:13]} 28... Qb5 {[%clk 0:02:03.2]} 29. a4 {[%clk
0:00:13.1]} 29... Qa6 {[%clk 0:02:02.8]} 30. Re1 {[%clk 0:00:11.2]} 30... Rxe1
{[%clk 0:01:58.8]} 31. Qxe1 {[%clk 0:00:12.7]} 31... Qxa4 {[%clk 0:01:56.6]} 32.
Bxb7 {[%clk 0:00:10.5]} 32... Qd7 {[%clk 0:01:55]} 33. Bf3 {[%clk 0:00:10.2]}
33... d2 {[%clk 0:01:55.4]} 34. Qd1 {[%clk 0:00:10.9]} 34... Qd3 {[%clk
0:01:50.8]} 35. Ba5 {[%clk 0:00:09.6]} 35... Be4 {[%clk 0:01:46.1]} 36. Bxd8
{[%clk 0:00:07.4]} 36... Qxf3+ {[%clk 0:01:46.4]} 37. Qxf3 {[%clk 0:00:08.1]}
37... Bxf3+ {[%clk 0:01:48.3]} 38. Kxf3 {[%clk 0:00:08]} 38... d1=Q+ {[%clk
0:01:50.2]} 39. Kg2 {[%clk 0:00:09.4]} 39... Qxd8 {[%clk 0:01:51.7]} 0-1

[Event "*** Titled Tuesday Blitz"]
[Site "Chess.com"]
[Date "2019.06.04"]
[Round "2"]
[White "MathiasWomacka"]
[Black "Caisachess"]
[Result "1-0"]
[WhiteElo "2302"]
[BlackElo "2442"]
[TimeControl "180+2"]
[EndTime "13:22:24 PDT"]
[Termination "MathiasWomacka won by resignation"]

1. e4 {[%clk 0:02:59.5]} 1... e5 {[%clk 0:03:00.4]} 2. Nf3 {[%clk 0:02:59.9]}
2... Nc6 {[%clk 0:03:01.9]} 3. Bb5 {[%clk 0:03:00.6]} 3... f5 {[%clk 0:03:02.5]}
4. d3 {[%clk 0:03:01]} 4... fxe4 {[%clk 0:03:03.9]} 5. dxe4 {[%clk 0:03:02.9]}
5... Nf6 {[%clk 0:03:04.9]} 6. O-O {[%clk 0:03:03.6]} 6... Bc5 {[%clk
0:03:06.3]} 7. Bxc6 {[%clk 0:03:03.3]} 7... bxc6 {[%clk 0:03:05.3]} 8. Nxe5
{[%clk 0:03:03.9]} 8... O-O {[%clk 0:03:01.3]} 9. Nc3 {[%clk 0:03:04.7]} 9...
Qe8 {[%clk 0:02:54]} 10. Nd3 {[%clk 0:02:58]} 10... Bd4 {[%clk 0:02:55]} 11. Qe1
{[%clk 0:02:56.9]} 11... Bxc3 {[%clk 0:02:55]} 12. Qxc3 {[%clk 0:02:57.3]} 12...
Nxe4 {[%clk 0:02:53]} 13. Qc4+ {[%clk 0:02:52.3]} 13... d5 {[%clk 0:02:50.1]}
14. Qa4 {[%clk 0:02:52.6]} 14... Bd7 {[%clk 0:02:44.3]} 15. f3 {[%clk
0:02:49.3]} 15... Nd6 {[%clk 0:02:41.8]} 16. Nc5 {[%clk 0:02:25.5]} 16... Bf5
{[%clk 0:02:35.6]} 17. Bd2 {[%clk 0:02:22]} 17... Qg6 {[%clk 0:02:27.4]} 18.
Qxc6 {[%clk 0:02:17.3]} 18... Bxc2 {[%clk 0:02:15]} 19. Qxd5+ {[%clk 0:02:17.3]}
19... Kh8 {[%clk 0:02:15.7]} 20. Rae1 {[%clk 0:02:09.8]} 20... Rae8 {[%clk
0:02:09.7]} 21. Bc3 {[%clk 0:01:53.2]} 21... Bf5 {[%clk 0:01:54.2]} 22. Re5
{[%clk 0:01:45]} 22... Nb5 {[%clk 0:01:45.1]} 23. Rxe8 {[%clk 0:01:29.5]} 23...
Rxe8 {[%clk 0:01:42.1]} 24. Be5 {[%clk 0:01:29.6]} 24... Bh3 {[%clk 0:01:24.8]}
25. Bg3 {[%clk 0:01:23.2]} 25... c6 {[%clk 0:01:20.5]} 26. Qd2 {[%clk
0:01:05.1]} 26... Bf5 {[%clk 0:01:16.9]} 27. a4 {[%clk 0:01:02.1]} 1-0